[Event "FIDE World Rapid-ch Open 2018"]
[White "Abdusattorov, Nodirbek"]
[Black "Tregubov, Pavel V."]
[Site "St. Petersburg"]
[Round "11.58"]
[Annotator "ChessBase"]
[Result "1-0"]
[Date "2018.12.28"]
[WhiteElo "2546"]
[BlackElo "2592"]
[PlyCount "237"]
[TimeControl "900+10"]

1. d4 {[%emt 0:0:0]} Nf6 {[%emt 0:0:0]} 2. c4 {[%emt 0:0:0]} e6 {[%emt 0:0:0]} 3. Nc3 {[%emt 0:0:0]} Bb4 {[%emt 0:0:0]} 4. e3 {[%emt 0:0:0]} 0-0 {[%emt 0:0:13]} 5. Bd3 {[%emt 0:0:2]} d5 {[%emt 0:0:1]} 6. Nge2 {[%emt 0:0:0]} dxc4 {[%emt 0:0:10]} 7. Bxc4 {[%emt 0:0:3]} Be7 {[%emt 0:0:2]} 8. 0-0 {[%emt 0:0:10]} c5 {[%emt 0:0:2]} 9. dxc5 {[%emt 0:0:14]} Bxc5 {[%emt 0:0:23]
} 10. a3 {[%emt 0:0:6]} a6 {[%emt 0:1:8]} 11. Bd3 {[%emt 0:0:0]} Be7 {[%emt 0:0:26]} 12. Nd4 {[%emt 0:1:6]} b5 {[%emt 0:0:57]} 13. b4 {[%emt 0:0:40]} Bb7 {[%emt 0:0:12]} 14. Bb2 {[%emt 0:0:35]} Nbd7 {[%emt 0:0:9]
} 15. Nb3 {[%emt 0:0:27]} Rc8 {[%emt 0:0:32]} 16. Ne2 {[%emt 0:0:0]} Qc7 {[%emt 0:1:26]} 17. Na5 {[%emt 0:0:56]} Ba8 {[%emt 0:0:12]} 18. Nd4 {[%emt 0:0:46]} Ne5 {[%emt 0:0:38]} 19. Be2 {[%emt 0:0:14]} Nc4 {[%emt 0:3:48]
} 20. Nxc4 {[%emt 0:0:55]} bxc4 {[%emt 0:0:2]} 21. Rc1 {[%emt 0:0:7]
} Bd5 {[%emt 0:1:26]} 22. Qc2 {[%emt 0:3:0]} Bd6 {[%emt 0:0:0]} 23. h3 {[%emt 0:0:12]} Qb7 {[%emt 0:0:47]} 24. Bf3 {[%emt 0:0:48]} Be5 {[%emt 0:1:18]} 25. Bxd5 {[%emt 0:0:44]} exd5 {[%emt 0:1:3]} 26. Rfd1 {[%emt 0:0:26]
} Qc7 {[%emt 0:0:55]} 27. Ne2 {[%emt 0:0:40]} Rfd8 {[%emt 0:0:0]} 28. Bxe5 {[%emt 0:0:6]} Qxe5 {[%emt 0:0:1]} 29. Qc3 {[%emt 0:0:27]} Qf5 {[%emt 0:0:23]} 30. Qd4 {[%emt 0:0:19]} h6 {[%emt 0:0:34]} 31. Nc3 {[%emt 0:0:5]
} Rd7 {[%emt 0:0:38]} 32. Rd2 {[%emt 0:0:10]} Re8 {[%emt 0:0:0]} 33. f3 {[%emt 0:0:26]} Re5 {[%emt 0:0:35]} 34. Re1 {[%emt 0:0:30]} Rde7 {[%emt 0:0:2]} 35. f4 {[%emt 0:1:6]} R5e6 {[%emt 0:0:2]} 36. g4 {[%emt 0:0:0]} Qh7 {[%emt 0:0:16]} 37. Nxd5 {[%emt 0:0:39]} Nxd5 {[%emt 0:0:2]} 38. Qxd5 {[%emt 0:0:2]} c3 {[%emt 0:0:20]} 39. Qa8+ {[%emt 0:0:11]} Re8 {[%emt 0:0:1]
} 40. Rd8 {[%emt 0:0:0]} Kf8 {[%emt 0:0:20]} 41. f5 {[%emt 0:0:0]} R6e7 {[%emt 0:0:17]} 42. Rc1 {[%emt 0:1:14]} h5 {[%emt 0:0:18]} 43. Rxc3 {[%emt 0:0:5]} Qh6 {[%emt 0:0:0]} 44. Rxe8+ {[%emt 0:0:34]} Rxe8 {[%emt 0:0:1]
} 45. Qc6 {[%emt 0:0:44]} Qg5 {[%emt 0:0:2]} 46. Qf3 {[%emt 0:0:0]} Qf6 {[%emt 0:0:31]} 47. Rd3 {[%emt 0:0:19]} h4 {[%emt 0:0:37]} 48. Qf4 {[%emt 0:0:14]} Qa1+ {[%emt 0:0:21]} 49. Kg2 {[%emt 0:0:4]} Rc8 {[%emt 0:0:5]
} 50. Rd2 {[%emt 0:0:35]} Qe1 {[%emt 0:0:7]} 51. Qf2 {[%emt 0:0:0]} Qb1 {[%emt 0:0:14]} 52. Qxh4 {[%emt 0:0:6]} Qe4+ {[%emt 0:0:4]} 53. Kf2 {[%emt 0:0:2]} Kg8 {[%emt 0:0:45]} 54. Rd8+ {[%emt 0:0:18]} Rxd8 {[%emt 0:0:0]
} 55. Qxd8+ {[%emt 0:0:1]} Kh7 {[%emt 0:0:1]} 56. Qd4 {[%emt 0:0:20]
} Qh1 {[%emt 0:0:2]} 57. Kg3 {[%emt 0:0:14]} Qg1+ {[%emt 0:0:0]} 58. Kf4 {[%emt 0:0:2]} Qf1+ {[%emt 0:0:5]} 59. Ke4 {[%emt 0:0:5]} Qxh3 {[%emt 0:0:5]} 60. Kd5 {[%emt 0:0:2]} Qf1 {[%emt 0:0:7]} 61. a4 {[%emt 0:0:13]
} Qg2+ {[%emt 0:0:13]} 62. Kd6 {[%emt 0:0:11]} Qb7 {[%emt 0:0:0]} 63. e4 {[%emt 0:0:45]} f6 {[%emt 0:0:32]} 64. a5 {[%emt 0:0:33]} Qb8+ {[%emt 0:0:18]
} 65. Kc6 {[%emt 0:0:5]} Qb5+ {[%emt 0:0:5]} 66. Kc7 {[%emt 0:0:3]
} Qe8 {[%emt 0:0:4]} 67. Kb6 {[%emt 0:0:13]} Qb5+ {[%emt 0:0:0]} 68. Ka7 {[%emt 0:0:0]} Qe2 {[%emt 0:0:12]} 69. Qd5 {[%emt 0:0:20]} Kh6 {[%emt 0:0:8]} 70. Qb7 {[%emt 0:0:13]} Qc4 {[%emt 0:0:2]} 71. Qd5 {[%emt 0:0:22]
} Qxb4 {[%emt 0:0:18]} 72. Kxa6 {[%emt 0:0:4]} Kg5 {[%emt 0:0:0]} 73. Qb7 {[%emt 0:0:12]} Qc4+ {[%emt 0:0:15]} 74. Kb6 {[%emt 0:0:13]} Qb4+ {[%emt 0:0:4]} 75. Kc6 {[%emt 0:0:5]} Qxe4+ {[%emt 0:0:6]} 76. Kc7 {[%emt 0:0:8]
} Qe7+ {[%emt 0:0:5]} 77. Kb6 {[%emt 0:0:4]} Qb4+ {[%emt 0:0:0]} 78. Ka6 {[%emt 0:0:1]} Qc4+ {[%emt 0:0:1]} 79. Ka7 {[%emt 0:0:19]} Qd4+ {[%emt 0:0:4]} 80. Qb6 {[%emt 0:0:18]} Qxg4 {[%emt 0:0:2]} 81. a6 {[%emt 0:0:3]
} Qxf5 {[%emt 0:0:10]} 82. Kb8 {[%emt 0:0:15]} Qe5+ {[%emt 0:0:0]} 83. Kb7 {[%emt 0:0:10]} Qe7+ {[%emt 0:0:54]} 84. Qc7 {[%emt 0:0:3]} Qb4+ {[%emt 0:0:3]} 85. Kc8 {[%emt 0:0:5]} Qf8+ {[%emt 0:0:7]} 86. Kd7 {[%emt 0:0:9]
} Qf7+ {[%emt 0:0:5]} 87. Kd6 {[%emt 0:0:5]} Qf8+ {[%emt 0:0:0]} 88. Kc6 {[%emt 0:0:21]} Qe8+ {[%emt 0:0:2]} 89. Kc5 {[%emt 0:0:9]} Qe3+ {[%emt 0:0:5]} 90. Kb5 {[%emt 0:0:2]} Qb3+ {[%emt 0:0:4]} 91. Ka5 {[%emt 0:0:11]
} Qa3+ {[%emt 0:0:3]} 92. Kb6 {[%emt 0:0:4]} Qb4+ {[%emt 0:0:0]} 93. Kc6 {[%emt 0:0:8]} Qc4+ {[%emt 0:0:6]} 94. Kb7 {[%emt 0:0:1]} Qb4+ {[%emt 0:0:14]} 95. Kc8 {[%emt 0:0:12]} Qf8+ {[%emt 0:0:2]} 96. Kd7 {[%emt 0:0:1]
} Qf7+ {[%emt 0:0:1]} 97. Kd6 {[%emt 0:0:2]} Qf8+ {[%emt 0:0:0]} 98. Qe7 {[%emt 0:0:15]} Qb8+ {[%emt 0:0:7]} 99. Kc6 {[%emt 0:0:1]} Qc8+ {[%emt 0:0:55]} 100. Kb6 {[%emt 0:0:2]} Qb8+ {[%emt 0:0:1]} 101. Ka5 {[%emt 0:0:2]} Kh6 {[%emt 0:1:17]} 102. a7 {[%emt 0:0:11]} Qb3 {[%emt 0:0:0]} 103. Qe4 {[%emt 0:0:36]} Qa3+ {[%emt 0:0:17]} 104. Kb6 {[%emt 0:0:3]} Qd6+ {[%emt 0:0:2]} 105. Qc6 {[%emt 0:0:13]} Qb4+ {[%emt 0:0:9]} 106. Kc7 {[%emt 0:0:43]} Qe7+ {[%emt 0:0:8]} 107. Kb8 {[%emt 0:0:10]} Qd8+ {[%emt 0:0:0]} 108. Kb7 {[%emt 0:0:4]} Qe7+ {[%emt 0:0:5]} 109. Qc7 {[%emt 0:0:0]} Qe4+ {[%emt 0:0:18]} 110. Kb6 {[%emt 0:0:20]} Qb4+ {[%emt 0:0:13]} 111. Kc6 {[%emt 0:0:2]} Qe4+ {[%emt 0:0:8]} 112. Kd7 {[%emt 0:0:13]} g5 {[%emt 0:0:13]
} 113. Qc5 {[%emt 0:0:30]} Qb7+ {[%emt 0:0:10]} 114. Ke8 {[%emt 0:0:4]
} Kg6 {[%emt 0:0:12]} 115. Qc2+ {[%emt 0:0:15]} Kg7 {[%emt 0:0:0]} 116. Qa4 {[%emt 0:0:15]} Qc8+ {[%emt 0:0:10]} 117. Ke7 {[%emt 0:0:0]} Qc5+ {[%emt 0:0:10]} 118. Kd8 {[%emt 0:0:8]} Qd5+ {[%emt 0:0:1]} 119. Qd7+ {[%emt 0:0:1]} 1-0

[Event "FIDE World Rapid-ch Open 2018"]
[White "Vokhidov, Shamsiddin"]
[Black "Gasanov, Eldar"]
[Site "St. Petersburg"]
[Round "11.59"]
[Annotator "ChessBase"]
[Result "0-1"]
[Date "2018.12.28"]
[WhiteElo "2480"]
[BlackElo "2499"]
[PlyCount "98"]
[TimeControl "900+10"]

1. e4 {[%emt 0:0:0]} e5 {[%emt 0:0:6]} 2. Nf3 {[%emt 0:0:0]} Nc6 {[%emt 0:0:14]
} 3. Bb5 {[%emt 0:0:0]} a6 {[%emt 0:0:8]} 4. Ba4 {[%emt 0:0:0]} Nf6 {[%emt 0:0:10]} 5. 0-0 {[%emt 0:0:1]} Be7 {[%emt 0:0:8]} 6. d3 {[%emt 0:0:3]
} d6 {[%emt 0:0:12]} 7. c4 {[%emt 0:0:34]} 0-0 {[%emt 0:0:30]} 8. Nc3 {[%emt 0:0:7]} Bg4 {[%emt 0:0:36]} 9. h3 {[%emt 0:1:30]} Bh5 {[%emt 0:0:29]
} 10. Be3 {[%emt 0:0:8]} Nd7 {[%emt 0:1:11]} 11. g4 {[%emt 0:0:0]} Bg6 {[%emt 0:0:4]} 12. Ne2 {[%emt 0:0:17]} f6 {[%emt 0:1:38]} 13. Ng3 {[%emt 0:0:27]} Nc5 {[%emt 0:0:14]} 14. Bc2 {[%emt 0:1:20]} Re8 {[%emt 0:0:38]
} 15. Qd2 {[%emt 0:0:38]} a5 {[%emt 0:1:32]} 16. Nh4 {[%emt 0:0:0]} Ne6 {[%emt 0:0:50]} 17. Ba4 {[%emt 0:0:39]} Bf7 {[%emt 0:0:41]} 18. Ng2 {[%emt 0:0:11]} Ncd4 {[%emt 0:0:45]} 19. f4 {[%emt 0:0:40]} c6 {[%emt 0:0:0]} 20. Nf5 {[%emt 0:1:37]} Bf8 {[%emt 0:0:47]} 21. Qf2 {[%emt 0:0:40]} Nc5 {[%emt 0:0:58]} 22. Bc2 {[%emt 0:0:56]} Nxc2 {[%emt 0:0:57]} 23. Qxc2 {[%emt 0:0:1]
} Rc8 {[%emt 0:0:30]} 24. Ng3 {[%emt 0:1:56]} d5 {[%emt 0:0:0]} 25. fxe5 {[%emt 0:0:2]} d4 {[%emt 0:0:13]} 26. Bd2 {[%emt 0:0:41]} fxe5 {[%emt 0:0:11]} 27. Nf5 {[%emt 0:0:28]} b5 {[%emt 0:0:32]} 28. b3 {[%emt 0:0:3]
} a4 {[%emt 0:0:18]} 29. b4 {[%emt 0:0:16]} Nxd3 {[%emt 0:0:0]} 30. Qxd3 {[%emt 0:0:10]} Bxc4 {[%emt 0:0:14]} 31. Qf3 {[%emt 0:0:3]} Bxf1 {[%emt 0:0:4]} 32. Rxf1 {[%emt 0:0:1]} Qd7 {[%emt 0:0:7]} 33. Ne1 {[%emt 0:0:11]
} c5 {[%emt 0:0:7]} 34. bxc5 {[%emt 0:0:3]} Rxc5 {[%emt 0:0:0]} 35. Nd3 {[%emt 0:1:3]} Rcc8 {[%emt 0:0:12]} 36. Nb4 {[%emt 0:0:42]} Qe6 {[%emt 0:0:30]} 37. Nd5 {[%emt 0:0:8]} Kh8 {[%emt 0:1:1]} 38. Ba5 {[%emt 0:0:53]
} g6 {[%emt 0:0:19]} 39. Ng3 {[%emt 0:0:26]} Bd6 {[%emt 0:0:0]} 40. Qd3 {[%emt 0:0:24]} Rf8 {[%emt 0:0:24]} 41. Qxb5 {[%emt 0:0:12]} Rxf1+ {[%emt 0:0:3]} 42. Nxf1 {[%emt 0:0:1]} Qf7 {[%emt 0:0:22]} 43. Qa6 {[%emt 0:1:9]
} Rf8 {[%emt 0:0:15]} 44. Be1 {[%emt 0:0:23]} Bc5 {[%emt 0:0:0]} 45. Nh2 {[%emt 0:0:27]} d3+ {[%emt 0:0:17]} 46. Kh1 {[%emt 0:0:6]} d2 {[%emt 0:0:16]} 47. Bxd2 {[%emt 0:0:14]} Qf2 {[%emt 0:0:2]} 48. Be3 {[%emt 0:0:56]
} Bxe3 {[%emt 0:0:16]} 49. Nxe3 {[%emt 0:0:2]} Qxe3 {[%emt 0:0:0]} 0-1

[Event "FIDE World Rapid-ch Open 2018"]
[White "Nihal Sarin"]
[Black "Yilmaz, Mustafa"]
[Site "St. Petersburg"]
[Round "11.60"]
[Annotator "ChessBase"]
[Result "1/2-1/2"]
[Date "2018.12.28"]
[WhiteElo "2576"]
[BlackElo "2636"]
[PlyCount "60"]
[TimeControl "900+10"]

1. d4 {[%emt 0:0:8]} Nf6 {[%emt 0:0:0]} 2. Nf3 {[%emt 0:0:2]} d5 {[%emt 0:0:14]
} 3. c4 {[%emt 0:0:5]} e6 {[%emt 0:0:3]} 4. g3 {[%emt 0:0:0]} dxc4 {[%emt 0:1:5]} 5. Bg2 {[%emt 0:0:1]} c5 {[%emt 0:0:2]} 6. 0-0 {[%emt 0:0:2]
} Nc6 {[%emt 0:0:2]} 7. dxc5 {[%emt 0:0:6]} Qxd1 {[%emt 0:0:0]} 8. Rxd1 {[%emt 0:0:2]} Bxc5 {[%emt 0:0:3]} 9. Nbd2 {[%emt 0:0:2]} c3 {[%emt 0:0:14]} 10. bxc3 {[%emt 0:0:2]} 0-0 {[%emt 0:0:4]} 11. Nb3 {[%emt 0:0:2]
} Be7 {[%emt 0:0:11]} 12. c4 {[%emt 0:0:3]} Bd7 {[%emt 0:0:0]} 13. Bb2 {[%emt 0:0:5]} Rfd8 {[%emt 0:0:12]} 14. Nfd4 {[%emt 0:0:2]} Rac8 {[%emt 0:0:2]} 15. Nb5 {[%emt 0:0:1]} b6 {[%emt 0:0:22]} 16. Nd6 {[%emt 0:0:2]
} Bxd6 {[%emt 0:0:17]} 17. Rxd6 {[%emt 0:0:3]} Be8 {[%emt 0:0:0]} 18. Rd3 {[%emt 0:0:2]} Nb4 {[%emt 0:0:19]} 19. Rxd8 {[%emt 0:0:4]} Rxd8 {[%emt 0:0:2]} 20. Bc3 {[%emt 0:0:1]} a5 {[%emt 0:0:25]} 21. c5 {[%emt 0:1:3]
} bxc5 {[%emt 0:1:5]} 22. Nxc5 {[%emt 0:0:46]} Bb5 {[%emt 0:0:0]} 23. Nb7 {[%emt 0:0:58]} Rc8 {[%emt 0:0:31]} 24. Bxb4 {[%emt 0:1:16]} axb4 {[%emt 0:0:4]} 25. Nd6 {[%emt 0:0:2]} Rc5 {[%emt 0:2:43]} 26. Nxb5 {[%emt 0:0:14]
} Rxb5 {[%emt 0:0:2]} 27. Rb1 {[%emt 0:0:1]} Kf8 {[%emt 0:0:0]} 28. a4 {[%emt 0:0:24]} Rb6 {[%emt 0:0:30]} 29. a5 {[%emt 0:0:2]} Ra6 {[%emt 0:0:10]
} 30. Rxb4 {[%emt 0:0:3]} Rxa5 {[%emt 0:0:5]} 1/2-1/2

[Event "FIDE World Rapid-ch Open 2018"]
[White "Le, Quang Liem"]
[Black "Oganian, Miran"]
[Site "St. Petersburg"]
[Round "11.61"]
[Annotator "ChessBase"]
[Result "1-0"]
[Date "2018.12.28"]
[WhiteElo "2714"]
[BlackElo "2423"]
[PlyCount "63"]
[TimeControl "900+10"]

1. c4 {[%emt 0:0:0]} Nf6 {[%emt 0:0:0]} 2. Nc3 {[%emt 0:0:0]} e6 {[%emt 0:0:0]
} 3. e4 {[%emt 0:0:0]} d5 {[%emt 0:0:0]} 4. cxd5 {[%emt 0:0:0]} exd5 {[%emt 0:0:0]} 5. e5 {[%emt 0:0:1]} Ne4 {[%emt 0:0:2]} 6. Nf3 {[%emt 0:0:5]
} Nc6 {[%emt 0:0:51]} 7. Bb5 {[%emt 0:0:5]} Nxc3 {[%emt 0:0:0]} 8. dxc3 {[%emt 0:0:5]} Be7 {[%emt 0:0:18]} 9. 0-0 {[%emt 0:0:7]} 0-0 {[%emt 0:0:3]} 10. Bd3 {[%emt 0:0:12]} Bg4 {[%emt 0:0:39]} 11. Re1 {[%emt 0:0:9]
} Qd7 {[%emt 0:0:42]} 12. h3 {[%emt 0:0:14]} Bh5 {[%emt 0:0:0]} 13. Bf4 {[%emt 0:0:4]} Bg6 {[%emt 0:0:26]} 14. Qd2 {[%emt 0:2:43]} Nd8 {[%emt 0:1:43]} 15. Rad1 {[%emt 0:0:34]} Ne6 {[%emt 0:0:34]} 16. Bh2 {[%emt 0:2:21]
} Rad8 {[%emt 0:0:13]} 17. Nd4 {[%emt 0:1:25]} Bc5 {[%emt 0:0:0]} 18. Nf5 {[%emt 0:2:19]} Bb6 {[%emt 0:1:58]} 19. g4 {[%emt 0:0:17]} Rfe8 {[%emt 0:0:15]} 20. Bg3 {[%emt 0:0:24]} Nc5 {[%emt 0:2:36]} 21. Bc2 {[%emt 0:0:5]
} Bxf5 {[%emt 0:0:29]} 22. gxf5 {[%emt 0:0:10]} Qe7 {[%emt 0:0:0]} 23. Qf4 {[%emt 0:0:10]} f6 {[%emt 0:1:5]} 24. Qg4 {[%emt 0:1:54]} Ne4 {[%emt 0:0:53]} 25. Bxe4 {[%emt 0:0:37]} dxe4 {[%emt 0:0:1]} 26. exf6 {[%emt 0:0:40]
} Rxd1 {[%emt 0:0:15]} 27. fxe7 {[%emt 0:0:31]} Rxe1+ {[%emt 0:0:0]} 28. Kg2 {[%emt 0:0:1]} Rxe7 {[%emt 0:0:36]} 29. f6 {[%emt 0:0:2]} Rf7 {[%emt 0:0:1]} 30. Qc8+ {[%emt 0:0:4]} Rf8 {[%emt 0:0:2]} 31. Qe6+ {[%emt 0:0:3]
} Rf7 {[%emt 0:0:25]} 32. Qe8+ {[%emt 0:0:2]} 1-0

[Event "FIDE World Rapid-ch Open 2018"]
[White "Khismatullin, Denis"]
[Black "Sokolin, Leonid"]
[Site "St. Petersburg"]
[Round "11.62"]
[Annotator "ChessBase"]
[Result "1/2-1/2"]
[Date "2018.12.28"]
[WhiteElo "2621"]
[BlackElo "2508"]
[PlyCount "79"]
[TimeControl "900+10"]

1. Nf3 {[%emt 0:0:0]} e6 {[%emt 0:0:0]} 2. b3 {[%emt 0:0:12]} f5 {[%emt 0:0:0]} 3. Bb2 {[%emt 0:0:5]} Nf6 {[%emt 0:0:0]} 4. g3 {[%emt 0:0:20]} d5 {[%emt 0:0:26]} 5. Bg2 c6 6. 0-0 {[%emt 0:0:6]} Bd6 {[%emt 0:0:2]} 7. d3 {[%emt 0:0:45]
} 0-0 {[%emt 0:0:2]} 8. Nbd2 {[%emt 0:0:27]} Nbd7 {[%emt 0:0:0]} 9. e4 {[%emt 0:0:53]} fxe4 {[%emt 0:0:7]} 10. dxe4 {[%emt 0:0:5]} e5 {[%emt 0:0:1]} 11. Qe2 {[%emt 0:1:58]} Re8 {[%emt 0:0:20]} 12. Rad1 {[%emt 0:1:10]
} Qc7 {[%emt 0:1:2]} 13. exd5 {[%emt 0:1:38]} cxd5 {[%emt 0:0:0]} 14. c4 {[%emt 0:0:1]} d4 {[%emt 0:0:20]} 15. Ng5 {[%emt 0:0:13]} Nc5 {[%emt 0:5:0]} 16. b4 {[%emt 0:2:9]} Na4 {[%emt 0:2:14]} 17. Nde4 {[%emt 0:0:50]
} Nxb2 {[%emt 0:0:38]} 18. Qxb2 {[%emt 0:0:37]} Nxe4 {[%emt 0:0:0]} 19. Bxe4 {[%emt 0:1:46]} g6 {[%emt 0:1:45]} 20. c5 {[%emt 0:0:51]} Bf8 {[%emt 0:0:1]} 21. f4 {[%emt 0:0:24]} Bh6 {[%emt 0:1:21]} 22. Bd5+ {[%emt 0:0:30]
} Kg7 {[%emt 0:0:0]} 23. Nf7 {[%emt 0:0:9]} Bh3 {[%emt 0:0:0]} 24. Rfe1 {[%emt 0:1:3]} Qd7 {[%emt 0:0:1]} 25. Nxe5 {[%emt 0:1:35]} Qxd5 {[%emt 0:0:2]} 26. Rxd4 {[%emt 0:0:3]} Qg8 {[%emt 0:0:3]} 27. g4 {[%emt 0:1:3]
} Bxg4 {[%emt 0:0:20]} 28. Nxg4 {[%emt 0:0:23]} Rxe1+ {[%emt 0:0:0]} 29. Kf2 {[%emt 0:0:2]} Kf8 {[%emt 0:0:38]} 30. Kxe1 {[%emt 0:0:9]} Qe6+ {[%emt 0:0:10]} 31. Ne5 {[%emt 0:0:2]} Bg7 {[%emt 0:0:8]} 32. Rd6 {[%emt 0:0:23]
} Qf5 {[%emt 0:0:40]} 33. Qd4 {[%emt 0:0:9]} Re8 {[%emt 0:0:0]} 34. Rd8 {[%emt 0:0:21]} Qb1+ {[%emt 0:0:20]} 35. Kf2 {[%emt 0:0:11]} Qxa2+ {[%emt 0:0:1]} 36. Kg3 {[%emt 0:0:2]} Qb3+ {[%emt 0:0:5]} 37. Kg2 {[%emt 0:0:14]
} Qa2+ {[%emt 0:0:6]} 38. Kf3 {[%emt 0:0:12]} Qb3+ {[%emt 0:0:0]} 39. Kg2 {[%emt 0:0:13]} Qa2+ {[%emt 0:0:1]} 40. Kg3 {[%emt 0:0:5]} 1/2-1/2

[Event "FIDE World Rapid-ch Open 2018"]
[White "Salgado Lopez, Ivan"]
[Black "Gutenev, Alexander"]
[Site "St. Petersburg"]
[Round "11.63"]
[Annotator "ChessBase"]
[Result "1/2-1/2"]
[Date "2018.12.28"]
[WhiteElo "2629"]
[BlackElo "2456"]
[PlyCount "119"]
[TimeControl "900+10"]

1. d4 {[%emt 0:0:0]} Nf6 {[%emt 0:0:0]} 2. Nf3 {[%emt 0:0:4]} g6 {[%emt 0:0:0]
} 3. c3 {[%emt 0:0:6]} Bg7 {[%emt 0:0:0]} 4. Bg5 {[%emt 0:0:0]} b6 {[%emt 0:2:14]} 5. Nbd2 {[%emt 0:0:11]} Bb7 {[%emt 0:0:8]} 6. e3 {[%emt 0:0:27]
} h6 {[%emt 0:0:26]} 7. Bh4 {[%emt 0:0:7]} d6 {[%emt 0:1:53]} 8. Bd3 {[%emt 0:0:28]} Nbd7 {[%emt 0:0:2]} 9. 0-0 {[%emt 0:0:31]} 0-0 {[%emt 0:0:8]
} 10. Re1 {[%emt 0:0:16]} e5 {[%emt 0:1:12]} 11. e4 {[%emt 0:0:0]} Qe8 {[%emt 0:0:48]} 12. a4 {[%emt 0:0:42]} a5 {[%emt 0:0:8]} 13. Qc2 {[%emt 0:1:8]} Nh5 {[%emt 0:0:9]} 14. dxe5 {[%emt 0:0:39]} Nxe5 {[%emt 0:2:15]
} 15. Bb5 {[%emt 0:0:42]} Bc6 {[%emt 0:2:13]} 16. Bf1 {[%emt 0:0:0]} Qc8 {[%emt 0:1:4]} 17. Nd4 {[%emt 0:1:1]} Qg4 {[%emt 0:0:22]} 18. Nxc6 {[%emt 0:0:35]} Nxc6 {[%emt 0:0:26]} 19. Bg3 {[%emt 0:0:34]} Nxg3 {[%emt 0:0:3]
} 20. hxg3 {[%emt 0:0:2]} Ne5 {[%emt 0:0:14]} 21. Nb3 {[%emt 0:0:44]
} Qh5 {[%emt 0:0:26]} 22. f3 {[%emt 0:1:22]} Nd7 {[%emt 0:0:0]} 23. Nd4 {[%emt 0:0:15]} Qc5 {[%emt 0:0:10]} 24. Qf2 {[%emt 0:0:7]} Ne5 {[%emt 0:0:48]} 25. g4 {[%emt 0:0:29]} Rad8 {[%emt 0:0:17]} 26. Nb3 {[%emt 0:3:25]
} Qxf2+ {[%emt 0:0:17]} 27. Kxf2 {[%emt 0:0:2]} d5 {[%emt 0:0:0]} 28. Rad1 {[%emt 0:0:49]} dxe4 {[%emt 0:0:23]} 29. Rxd8 {[%emt 0:0:0]} Rxd8 {[%emt 0:0:5]} 30. Rxe4 {[%emt 0:0:2]} Kf8 {[%emt 0:0:15]} 31. Ke1 {[%emt 0:0:41]} Bf6 {[%emt 0:0:36]} 32. Ba6 {[%emt 0:0:29]} Nd7 {[%emt 0:0:37]
} 33. Bb5 {[%emt 0:0:9]} Nc5 {[%emt 0:0:25]} 34. Nxc5 {[%emt 0:0:3]
} bxc5 {[%emt 0:0:3]} 35. g3 {[%emt 0:0:17]} Be7 {[%emt 0:0:0]} 36. f4 {[%emt 0:0:13]} Rd6 {[%emt 0:0:1]} 37. Bc4 {[%emt 0:0:31]} Rb6 {[%emt 0:0:8]} 38. Re2 {[%emt 0:0:5]} Rd6 {[%emt 0:0:3]} 39. Re5 {[%emt 0:0:38]
} Rd8 {[%emt 0:0:24]} 40. Bb5 {[%emt 0:0:15]} Rd6 {[%emt 0:0:0]} 41. Bc4 {[%emt 0:0:28]} Rd8 {[%emt 0:0:2]} 42. Bb5 {[%emt 0:0:51]} Bd6 {[%emt 0:0:7]} 43. Re4 {[%emt 0:0:17]} Be7 {[%emt 0:0:5]} 44. Ke2 {[%emt 0:0:10]
} Rd6 {[%emt 0:0:2]} 45. Re5 {[%emt 0:0:36]} Rd8 {[%emt 0:0:0]} 46. Re4 {[%emt 0:0:27]} Rd6 {[%emt 0:0:2]} 47. Bc4 {[%emt 0:0:6]} Rb6 {[%emt 0:0:6]} 48. b3 {[%emt 0:0:3]} Rd6 {[%emt 0:0:3]} 49. Re5 {[%emt 0:0:0]} Rd8 {[%emt 0:0:2]} 50. Rd5 {[%emt 0:0:30]} Bd6 {[%emt 0:0:38]} 51. Bb5 {[%emt 0:0:8]} Ke7 {[%emt 0:0:15]} 52. Kd3 {[%emt 0:0:7]} g5 {[%emt 0:0:0]} 53. Ke4 {[%emt 0:0:17]} Rg8 {[%emt 0:0:5]} 54. Kf3 {[%emt 0:0:1]} Rg6 {[%emt 0:0:9]} 55. Bc4 {[%emt 0:0:13]} Rf6 {[%emt 0:0:10]} 56. f5 {[%emt 0:0:17]
} c6 {[%emt 0:0:1]} 57. Rd3 {[%emt 0:0:3]} Bc7 {[%emt 0:0:0]} 58. Re3+ {[%emt 0:0:3]} Kf8 {[%emt 0:0:5]} 59. Rd3 {[%emt 0:0:56]} Rd6 {[%emt 0:0:3]} 60. Rxd6 {[%emt 0:0:13]} 1/2-1/2

[Event "FIDE World Rapid-ch Open 2018"]
[White "Gordievsky, Dmitry"]
[Black "Smirin, Ilia"]
[Site "St. Petersburg"]
[Round "11.64"]
[Annotator "ChessBase"]
[Result "0-1"]
[Date "2018.12.28"]
[WhiteElo "2614"]
[BlackElo "2609"]
[PlyCount "69"]
[TimeControl "900+10"]

1. d4 {[%emt 0:0:48]} Nf6 {[%emt 0:0:0]} 2. Nf3 {[%emt 0:0:10]} g6 {[%emt 0:0:4]
} 3. Nbd2 {[%emt 0:0:5]} Bg7 {[%emt 0:0:15]} 4. e4 {[%emt 0:0:0]} d6 {[%emt 0:0:2]} 5. Bd3 {[%emt 0:0:2]} 0-0 {[%emt 0:0:10]} 6. 0-0 {[%emt 0:0:2]} Nc6 {[%emt 0:0:20]} 7. c3 {[%emt 0:0:5]} e5 {[%emt 0:0:15]
} 8. dxe5 {[%emt 0:0:10]} Nxe5 {[%emt 0:0:17]} 9. Nxe5 {[%emt 0:0:4]} dxe5 {[%emt 0:0:1]} 10. Nc4 {[%emt 0:0:21]} Qe7 {[%emt 0:1:8]} 11. Bg5 {[%emt 0:0:9]
} a5 {[%emt 0:0:50]} 12. a4 {[%emt 0:0:19]} b6 {[%emt 0:0:18]} 13. Ne3 {[%emt 0:3:36]} Bb7 {[%emt 0:0:39]} 14. Qc2 {[%emt 0:1:49]} h6 {[%emt 0:0:54]
} 15. Bh4 {[%emt 0:0:3]} Qc5 {[%emt 0:0:2]} 16. Rfe1 {[%emt 0:0:13]
} Nh5 {[%emt 0:1:31]} 17. f3 {[%emt 0:0:2]} Nf4 {[%emt 0:0:0]} 18. Bf1 {[%emt 0:0:40]} h5 {[%emt 0:0:36]} 19. Bf2 {[%emt 0:0:14]} Qe7 {[%emt 0:0:4]} 20. Rad1 {[%emt 0:0:35]} h4 {[%emt 0:1:18]} 21. Rd2 {[%emt 0:0:24]
} Qg5 {[%emt 0:0:48]} 22. Kh1 {[%emt 0:0:17]} f5 {[%emt 0:0:0]} 23. Rd7 {[%emt 0:1:28]} Rac8 {[%emt 0:0:3]} 24. Nd5 {[%emt 0:2:5]} fxe4 {[%emt 0:0:21]} 25. fxe4 {[%emt 0:4:20]} Bxd5 {[%emt 0:3:3]} 26. exd5 {[%emt 0:0:6]} Qg4 {[%emt 0:0:1]} 27. Rxg7+ {[%emt 0:0:59]} Kxg7 {[%emt 0:0:0]} 28. Qe4 {[%emt 0:0:14]} Rce8 {[%emt 0:0:43]} 29. Bg1 {[%emt 0:0:16]} Qf5 {[%emt 0:0:45]} 30. Bb5 {[%emt 0:0:9]} Re7 {[%emt 0:1:15]} 31. Bc6 {[%emt 0:0:11]
} h3 {[%emt 0:0:14]} 32. gxh3 {[%emt 0:0:7]} Qxe4+ {[%emt 0:0:0]} 33. Rxe4 {[%emt 0:0:1]} Nxh3 {[%emt 0:0:2]} 34. d6 {[%emt 0:0:19]} Rf1 {[%emt 0:0:19]} 35. Rg4 {[%emt 0:0:11]} 0-1